Workbook

Sheet MOS (hidden)
A1: MATERIALS ON SITE
A3: ITEM | B3: DESCRIPTION | C3: UNIT | D3: QTY | E3: RATE | F3: AMOUNT
A5: 1 | B5: 80mm Interlocking Paving Grey 30 Mpa | C5: m2 | D5: 5500 | E5: 106 | F5: =E5*D5 -> 583000
A6: 2 | B6: Freight Charges | C6: Item | D6: 37 | E6: 2500 | F6: =E6*D6 -> 92500 | H6: =F5*0.055 -> 32065
E7: Sub-Total | F7: =SUM(F5:F6)-H6 -> 643435
A9: 3 | B9: G5 Material (-55mm) | C9: m3 | D9: 2000 | E9: 132 | F9: 264000
A10: 4 | B10: Transport | C10: m3 | D10: 2000 | E10: 82.5 | F10: 165000
A11: 5 | B11: Dump Rock ( Fillling) | C11: m3 | D11: 2160 | E11: 69 | F11: 149040 | I11: =106*5500 -> 583000 | J11: *
A12: 6 | B12: Transport | C12: m3 | D12: 2160 | E12: 82.5 | F12: =E12*D12 -> 178200 | I12: =2500*37 -> 92500
E13: Sub-Total | F13: =SUM(F9:F12) -> 756240
A15: 7 | B15: Concrete Ready Mix ( 25Mpa) | C15: m3 | D15: 350 | E15: 1186.33 | F15: 415215.5 | I15: =SUM(I11:I12) -> 675500
E16: Sub-Total | F16: =F15 -> 415215.5 | I16: =I11*0.055 -> 32065
B30: Total | F30: =F16+F13+F7 -> 1814890.5
B33: Total (Value of materials on site excluding VAT (80%) | F33: =F30*0.8 -> 1451912.4

Sheet SUMMARY (2)
B1: SUMMARY SCHEDULE
A2: SECTION | B2: DESCRIPTION | C2: AMOUNT
B3: SCHEDULE A
A4: SECTION 1 | B4: PRELIMINARY AND GENERAL | C4: =BoQ!F171 -> 0
B5: SCHEDULE B
A6: SECTION 2 | B6: SITE CLEARANCE | C6: =BoQ!F202 -> 0
A7: SECTION 3 | B7: ACCOMMODATION OF TRAFFIC | C7: =BoQ!F250 -> 0
A8: SECTION 4 | B8: EARTHWORKS (ROADS, SUBGRADE) | C8: =BoQ!F380 -> 0
A9: SECTION 5 | B9: STORMWATER DRAINAGE, SITE CLEARANCE AND EXCAVATION | C9: =BoQ!F468 -> 0
A10: SECTION 6 | B10: SUBBASE | C10: =BoQ!F503 -> 0
A11: SECTION 7 | B11: ASPHALT SURFACING | C11: =BoQ!F554 -> 0
A12: SECTION 8 | B12: SEGMENTED PAVING | C12: =BoQ!F580 -> 0
A13: SECTION 9 | B13: KERBING AND CHANNELLING | C13: =BoQ!F606 -> 0
A14: SECTION 10 | B14: ANCILLARY ROADWORKS | C14: =BoQ!F705 -> 0
A15: SUB TOTAL 1 | C15: =SUM(C3:C14) -> 0
A16: CONTINGENCIES @ 8% | C16: =8%*C15 -> 0
A17: SUB TOTAL 1 | C17: =C16+C15 -> 0
A18: VAT @15% | C18: =C17*0.15 -> 0
A19: TOTAL PROJECT COST | C19: =C18+C17 -> 0

Sheet BoQ
A4: ITEM | B4: DESCRIPTION | C4: UNIT | D4: QTY | E4: RATE | F4: AMOUNT
A5: NO
B8: SECTION 1 : GENERAL
A10: 1.1 | B10: SCHEDULED FIXED-CHARGE ITEMS
A12: 1.1.1 | B12: Contractual Requirements | C12: Sum | D12: 1 | E12: 0 | F12: =D12*E12 -> 0
B14: Establish Facilities on the Site :
B16: Facilities for Engineer (SABS 1200 AB)
A18: 1.1.2 | B18: a) Furnished Offices (2 No.) | C18: Sum | D18: 1 | E18: 0 | F18: =D18*E18 -> 0
A20: 1.1.3 | B20: c) Nameboards (2 No.) | C20: Sum | D20: 1 | E20: 0 | F20: 0
B22: Facilities for Contractor
A24: 1.1.4 | B24: a) Offices and storage sheds | C24: Sum | D24: 1 | E24: 0 | F24: 0
A26: 1.1.5 | B26: c) Laboratories | C26: Sum | D26: 1 | E26: 0 | F26: 0
A28: 1.1.6 | B28: h) Water supplies, electric power and communications | C28: Sum | D28: 1 | E28: 0 | F28: 0
A30: 1.1.7 | B30: j) Plant | C30: Sum | D30: 1 | E30: 0 | F30: 0 | H30: 0.07 | I30: 5
A32: 1.1.8 | B32: Other fixed-charge obligations | C32: Sum | D32: 1 | E32: 0 | F32: 0
A34: 1.1.9 | B34: Remove Engineer's and Contractor's Site establishment on completion | C34: Sum | D34: 1 | E34: 0 | F34: 0
H35: =(G35*(1+$H$30)^$I$30) -> 0
A36: 1.1.10 | B36: Comply with health and safety specifications | C36: Sum | D36: 1 | E36: 0 | F36: 0
A38: 1.2 | B38: SCHEDULED TIME-RELATED ITEMS
B40: (Contract period is eight months)
B42: Operate and maintain facilities on the Site for the duration of construction:
B44: a) Facilities for Engineer for duration of construction (as per item 1.1.2 )
A46: 1.2.1 | B46: Offices: 2 rooms, etc., as for item 1.1.2 | C46: Month | D46: 8 | E46: 0 | F46: 0
B48: b) Facilities for Contractor for duration of construction, except where otherwise stated
A49: 1.2.2 | B49: a) Offices and storage sheds | C49: Month | D49: 8 | E49: 0 | F49: 0
A51: 1.2.3 | B51: c) Laboratories | C51: Month | D51: 8 | E51: 0 | F51: 0
A53: 1.2.4 | B53: h) Water supplies, electric power and communications | C53: Month | D53: 8 | E53: 0 | F53: 0
A55: 1.2.5 | B55: j) Plant | C55: Month | D55: 8 | E55: 0 | F55: 0
A57: TOTAL CARRIED FORWARD | F57: =SUM(F7:F55) -> 0
A64: ITEM | B64: DESCRIPTION | C64: UNIT | D64: QTY | E64: RATE | F64: TENDERED
A65: NO | F65: AMOUNT
A66: BROUGHT FORWARD
A69: 1.2.6 | B69: Supervision for duration of construction. | C69: Month | D69: 8 | E69: 0 | F69: 0
A71: 1.2.7 | B71: Company and head office overhead costs for the duration of the contract | C71: Month | D71: 8 | E71: 0 | F71: 0
A73: 1.2.8 | B73: Supervision of SMMEs for duration of construction (One Foreman for every Three Sub-contractors) | C73: Month | D73: 8 | E73: 0 | F73: 0
A75: 1.2.9 | B75: Provision of training for 1 student | C75: Month | D75: 8 | E75: 0 | F75: 0
A77: 1.2.10 | B77: Other time-related obligations | C77: Sum | D77: 1 | E77: 0 | F77: 0
A79: 1.2.11 | B79: Remuneration of Community Liaison Office (CLO) | C79: Month | D79: 8 | E79: 7000 | F79: =D79*E79 -> 56000
A81: 1.2.12 | B81: Overhead charges and profit on item 1.2.11 | C81: % | D81: 56000 | E81: 0 | F81: 0
A83: 1.2.13 | B83: Obtaining and maintaining in good standing, of wayleaves for the duration of the Contract | C83: Sum | D83: 1 | E83: 0 | F83: 0
A85: 1.2.14 | B85: Obligation with regards to the Project Steering Committee - Social facilitation | C85: Month | D85: 8 | E85: 0 | F85: 0
A87: 1.2.15 | B87: Obligation with regards to the PSC | C87: Prov Sum | D87: 1 | E87: 0 | F87: 0
A89: 1.2.16 | B89: Comply with health and safety specification. | C89: Month | D89: 8 | E89: 0 | F89: 0
A92: 1.3 | B92: SUMS STATED PROVISIONALLY BY ENGINEER (See 8.1.2.1 (d))
A94: 1.3.1 | B94: a) Material tests required by the Engineer | C94: Stated Sum | D94: 1 | E94: 50000 | F94: 50000
A96: 1.3.2 | B96: Overheads, charges and profit in respect of item 1.4.1 | C96: % | D96: =E94 -> 50000 | E96: 0 | F96: 0
A98: 1.3.3 | B98: Relocation, remove and protection of services | C98: Stated Sum | D98: 1 | E98: 50000 | F98: 50000
A100: 1.3.4 | B100: Overheads, charges and profit in respect of item 1.4.3 | C100: % | D100: =E98 -> 50000 | E100: 0 | F100: 0
A102: 1.3.5 | B102: Detection/Scanning of existing services by GPS | C102: Stated Sum | D102: 1 | E102: 40000 | F102: 40000
A104: 1.3.6 | B104: Overheads, charges and profit in respect of item 1.4.5 | C104: % | D104: =E102 -> 40000 | E104: 0 | F104: 0
A106: 1.3.7 | B106: Cellphone for the engineer | C106: Stated Sum | D106: 1 | E106: 10000 | F106: 10000
A108: 1.3.8 | B108: Overheads, charges and profit in respect of item 1.47 | C108: % | D108: =E106 -> 10000 | E108: 0 | F108: 0
A110: 1.3.9 | B110: Formal training by the nominated training provider | C110: Stated Sum | D110: 1 | E110: 150000 | F110: 150000
A112: 1.3.10 | B112: Overheads, charges and profit in respect of item 1.4.9 | C112: % | D112: =E110 -> 150000 | E112: 0 | F112: 0
A114: 1.4 | B114: DAYWORK | H114: =(G114*(1+$H$30)^$I$30) -> 0
B116: Labour | H116: 0
A118: 1.4.1 | B118: Skilled | C118: h | D118: 100 | E118: 0 | F118: 0
A120: 1.4.2 | B120: Semi-skilled | C120: h | D120: 320 | E120: 0 | F120: 0 | H120: 0
A122: 1.4.3 | B122: Unskilled | C122: h | D122: 400 | E122: 0 | F122: 0
B124: Contractor's own plant (contractor must provide details of suitable plant)
B126: Excavator
A127: 1.4.4 | B127: Minimum power 75kW (16) | C127: h | D127: 20 | E127: 0 | F127: 0
B129: Tractor Loader Backactor
A130: 1.4.5 | B130: Minimum power :50 kW ( Similar to cat 920) Manufacture ....... Model .............. | C130: h | D130: 20 | E130: 0 | F130: 0
B132: Front end loader
A134: TOTAL CARRIED FORWARD | F134: 0
A140: ITEM | B140: DESCRIPTION | C140: UNIT | D140: QTY | E140: RATE | F140: TENDERED
A141: NO | F141: AMOUNT
A143: BROUGHT FORWARD | F143: =F134 -> 0
A146: 1.4.6 | B146: Minimum power: 60kW (Similar to Cat 920 ) manufacture ...... model ...... | C146: h | D146: 20 | E146: 0 | F146: =D146*E146 -> 0
B147: Platform truck
A149: 1.4.7 | B149: Minimum load mass :4t | C149: h | D149: 20 | E149: 0 | F149: =D149*E149 -> 0
B150: Tip truck
A152: 1.4.8 | B152: Minimum load mass: 10t minimum load capacity 10m³ | C152: h | D152: 20 | E152: 0 | F152: 0
B153: Compressor complete with one hand held plate compactor and all attachments
A155: 1.4.9 | B155: Minimum capacity: 7m³/ minutes Manufacturer ...... Model.... | C155: h | D155: 20 | E155: 0 | F155: 0
A157: 1.4.10 | B157: Submersible dewatering pump, 40m³/h, with hoses and power supply manufacturer... model...... | C157: h | D157: 20 | E157: 0 | F157: 0
A159: 1.5 | B159: TEMPORARY WORKS
A161: 1.5.2 | B161: Deal with traffic (accomodation of traffic) | C161: Sum | D161: 1 | E161: 0 | F161: 0
A163: 1.5.3 | B163: Existing services
A165: 1.5.4 | B165: (c) Excavate by hand in soft material to expose services | C165: m³ | D165: 100 | E165: 0 | F165: 0
A168: 1.5.5 | B168: Provisional sum for unblocking and cleaning of stormwater system on all streets | C168: Prov Sum | D168: 1 | E168: 0 | F168: 0
A171: TOTAL CARRIED FORWARD TO SUMMARY | F171: =SUM(F142:F169) -> 0
A177: ITEM | B177: DESCRIPTION | C177: UNIT | D177: QTY | E177: RATE | F177: TENDERED
A178: NO | F178: AMOUNT
B181: SECTION 2 : SITE CLEARANCE
A183: 2.1 | B183: CLEAR SITE
A185: 2.1.1 | B185: Clear and grub Site | C185: ha | D185: 2 | E185: 0 | F185: =D185*E185 -> 0
A187: 2.1.5 | B187: Reclear surfaces (provisional) (where ordered by Engineer) | C187: ha | D187: 0.05 | E187: 0 | F187: =D187*E187 -> 0
H193: 200 | I193: =(H193*(1+$H$30)^$I$30) -> 280.5103461
I194: =(H194*(1+$H$30)^$I$30) -> 0
H195: 300 | I195: =(H195*(1+$H$30)^$I$30) -> 420.7655192
A202: TOTAL CARRIED FORWARD TO SUMMARY | F202: =SUM(F180:F200) -> 0
H205: 900 | I205: =(H205*(1+$H$30)^$I$30) -> 1262.296558
H206: 1300 | I206: =(H206*(1+$H$30)^$I$30) -> 1823.31725
A208: ITEM | B208: DESCRIPTION | C208: UNIT | D208: QTY | E208: RATE | F208: TENDERED | H208: 2500 | I208: =(H208*(1+$H$30)^$I$30) -> 3506.379327
A209: NO | F209: AMOUNT
B213: SECTION 3 :ACCOMMODATION OF TRAFFIC
A215: 3.1 | B215: FINISHINGS
H216: 6000 | I216: =(H216*(1+$H$30)^$I$30) -> 8415.310384
A217: 3.1.1 | B217: Topsoiling | C217: m² | E217: 0 | F217: Rate Only
H218: 6500 | I218: =(H218*(1+$H$30)^$I$30) -> 9116.58625
A219: 3.1.2 | B219: Grassing | C219: m² | E219: 0 | F219: Rate Only
A222: 3.1.3 | B222: Accomodation of traffic and maintanance of by passes | C222: km | D222: 2 | E222: 0 | F222: =D222*E222 -> 0
B224: Existing roads used as bypasses | C224: m | D224: 2000 | E224: 0 | F224: =D224*E224 -> 0
B226: Temporary traffic control
B228: Flagmen | C228: p/m | D228: 8 | E228: 0 | F228: 0
B230: Portable Stop and Go signs | C230: No. | D230: 2 | E230: 0 | F230: 0
B232: Amber flashing lights | C232: No. | D232: 2 | E232: 0 | F232: 0
B234: Road signs, TR-series,1200 in diameter | C234: No. | D234: 10 | E234: 0 | F234: 0
B236: Road signs, TW-series, 1524mm sides | C236: No. | D236: 10 | E236: 0 | F236: 0
B238: Road signs, TG series | C238: No. | D238: 10 | E238: 0 | F238: 0
B240: Danger plates and delineators | C240: No. | D240: 100 | E240: 0 | F240: 0
B242: Movable barricades/ road sign combination | C242: No. | D242: 8 | E242: 0 | F242: 0
B244: Re-use or removal of traffic control facilities -
B246: Amber flashing light | C246: No. | D246: 2 | E246: 0 | F246: 0
H249: 550 | I249: =(H249*(1+$H$30)^$I$30) -> 771.4034519
A250: TOTAL CARRIED FORWARD TO SUMMARY | F250: =SUM(F212:F248) -> 0
H251: 1000 | I251: =(H251*(1+$H$30)^$I$30) -> 1402.551731
H253: 65 | I253: =(H253*(1+$H$30)^$I$30) -> 91.1658625
H255: 1000 | I255: =(H255*(1+$H$30)^$I$30) -> 1402.551731
A257: ITEM | B257: DESCRIPTION | C257: UNIT | D257: QTY | E257: RATE | F257: TENDERED
A258: NO | F258: AMOUNT | H258: 1500 | I258: =(H258*(1+$H$30)^$I$30) -> 2103.827596
I259: =(H259*(1+$H$30)^$I$30) -> 0
H260: 250 | I260: =(H260*(1+$H$30)^$I$30) -> 350.6379327
A261: 4 | B261: SECTION 4 : EARTHWORKS (ROADS, SUBGRADE)
H262: Sum
B263: SITE CLEARANCE
A265: 4.1 | B265: Clear site | C265: m² | D265: 5000 | E265: 0 | F265: =D265*E265 -> 0
H266: 3500 | I266: =(H266*(1+$H$30)^$I$30) -> 4908.931057
A267: 4.2 | B267: Remove trees | C267: No. | F267: Rate only
A269: 4.3 | B269: Remove topsoil up to 50mm to stockpile and maintainance thereof | C269: m³ | D269: 500 | E269: 0 | F269: =D269*E269 -> 0
B271: TREATMENT OF ROAD-BED
A273: 4.4 | B273: Road-bed preparation and compaction of material
A275: 4.4.1 | B275: Compact to 90 % mod. AASHTO maximum density | C275: m³ | D275: 1500 | E275: 0 | F275: =D275*E275 -> 0
B277: EARTHWORKS
A279: 4.5 | B279: Cut to fill
A281: 4.5.1 | B281: Compact to 90 % mod. AASHTO maximum density | C281: m³ | D281: 3300 | E281: 0 | F281: =D281*E281 -> 0
A283: 4.6 | B283: Borrow to fill
A285: 4.6.1 | B285: Compact to 90 % mod.AASHTO maximum density | C285: m³ | D285: 3300 | E285: 0 | F285: =D285*E285 -> 0 | H285: 2000 | I285: =(H285*(1+$H$30)^$I$30) -> 2805.103461
A287: 4.7 | B287: Selected G7 layer compacted to 93 % mod. AASHTO maximum density | C287: m³ | D287: 920 | E287: 0 | F287: =D287*E287 -> 0
A289: 4.8 | B289: Extra-over items 6.6 to 6.8 inclusive for excavating and breaking down material in: | H289: 225 | I289: =(H289*(1+$H$30)^$I$30) -> 315.5741394
A291: 4.8.1 | B291: Intermediate excavation | C291: m³ | D291: 2000 | E291: 0 | F291: =D291*E291 -> 0
A293: 4.8.2 | B293: Hard excavation | C293: m³ | D293: 500 | E293: 0 | F293: =D293*E293 -> 0
A295: 4.8.3 | B295: Boulder excavation Class A | C295: m³ | D295: 200 | E295: 0 | F295: Rate only
A297: 4.8.4 | B297: Boulder excavation Class B | C297: m³ | D297: 200 | E297: 0 | F297: Rate only
A299: 4.9 | B299: Cut to spoil from
A301: 4.9.1 | B301: Soft excavation | C301: m³ | D301: 500 | E301: 0 | F301: Rate only
A303: 4.9.2 | B303: Intermediate excavation | C303: m³ | D303: 500 | E303: 0 | F303: Rate only
A305: 4.9.3 | B305: Hard excavation | C305: m³ | D305: 200 | E305: 0 | F305: Rate only
A307: 4.9.4 | B307: Boulder excavation Class A | C307: m³ | D307: 100 | E307: 0 | F307: Rate only
A309: 4.9.5 | B309: Boulder excavation Class B | C309: m³ | D309: 100 | E309: 0 | F309: Rate only
A313: TOTAL CARRIED FORWARD | F313: =SUM(F260:F311) -> 0
A319: ITEM | B319: DESCRIPTION | C319: UNIT | D319: QTY | E319: RATE | F319: TENDERED
A320: NO | F320: AMOUNT
A323: BROUGHT FORWARD | F323: =F313 -> 0
A326: 4.1 | B326: Removal of oversize material | C326: m³ | E326: 0 | F326: Rate only
B328: Removal of existing kerbs | C328: m | D328: 500 | E328: 0 | F328: =D328*E328 -> 0
H355: 30 | I355: =(H355*(1+$H$30)^$I$30) -> 42.07655192
H359: 12.5 | I359: =(H359*(1+$H$30)^$I$30) -> 17.53189663
H375: 12.5 | I375: =(H375*(1+$H$30)^$I$30) -> 17.53189663
A380: TOTAL CARRIED FORWARD TO SUMMARY | F380: =SUM(F322:F378) -> 0
H381: 1900 | I381: =(H381*(1+$H$30)^$I$30) -> 2664.848288
H385: 15 | I385: =(H385*(1+$H$30)^$I$30) -> 21.03827596
A387: ITEM | B387: DESCRIPTION | C387: UNIT | D387: QTY | E387: RATE | F387: TENDERED
A388: NO | F388: AMOUNT
A390: 5 | B390: SECTION 5 :STORMWATER DRAINAGE SITE CLEARANCE AND EXCAVATION
A392: 5.1 | B392: Clear Site | C392: m² | D392: 1400 | E392: 0 | F392: =D392*E392 -> 0
B394: TRENCHES FOR STORMWATER PIPES
A396: 5.2 | B396: Excavate in all materials for trenches,
B397: backfill, compact and dispose of surplus
B398: material :
B399: Pipes over 550 mm dia up to 700 mm dia
B400: Up to 1,0 m
B402: Over 1,0 m up to 2,0 m | C402: m | D402: 1000 | E402: 0 | F402: =D402*E402 -> 0
B404: Over 2,0 m up to 3,0 m | C404: m | D404: 100 | E404: 0 | F404: =D404*E404 -> 0
A406: 5.3 | B406: PIPES
B407: Supply, handle, lay, bed Class C bedding, class D spigot and socket pipes with rolling rubber ring
A409: 5.3.1 | B409: b) 01. 75D 600 mm diameter | C409: m | D409: 1000 | E409: 0 | F409: =D409*E409 -> 0
B411: 02. 100D 600mm diameter | C411: m | D411: 50 | E411: 0 | F411: =D411*E411 -> 0
A413: 5.3.2 | B413: Supply and lay precast concrete inlets and outlets to culverts:
B414: .01. . All types | C414: no. | D414: 4 | E414: 0 | F414: =D414*E414 -> 0
H415: 225 | I415: =(H415*(1+$H$30)^$I$30) -> 315.5741394
B416: Supply and install manholes and the like:
A417: 5.4 | B417: .01 BRICKWORK MANHOLES Construct complete with covers and frames
A419: 5.4.1 | B419: a) Type
B420: 0.01 depth up to 1.5m | C420: no. | D420: 5 | E420: 0 | F420: =D420*E420 -> 0
B422: .0.02 depth up to 3m | C422: no | D422: 3 | E422: 0 | F422: =D422*E422 -> 0
A425: TOTAL CARRIED FORWARD | F425: =SUM(F391:F422) -> 0
H427: 180 | I427: =(H427*(1+$H$30)^$I$30) -> 252.4593115
H429: 180 | I429: =(H429*(1+$H$30)^$I$30) -> 252.4593115
A431: BROUGHT FORWARD
F432: =F425 -> 0
A434: 5.5 | B434: .03. CATCHPITS Construct complete with Grid inlets
A436: 5.5.1 | B436: a) Type
B437: 0.01 for half round Channel depth Up to 3.4 m | C437: No. | D437: 4 | E437: 0 | F437: =D437*E437 -> 0
A439: 5.6. | B439: .04 Kerb inlets:
A440: 5.6.1 | B440: a) Type
B442: Length 1,8 m, as shown on dwg | D442: 8 | E442: 0 | F442: =D442*E442 -> 0
I443: =(H443*(1+$H$30)^$I$30) -> 0
... 122 more rows

Sheet 4100 (hidden)
A2: RUSTENBURG LOCAL MUNICIPALITY
A3: CONTRACT NO: RLM/OMM/0080/2020/21
A4: CONSTRUCTION OF ROADS AND STORMWATER IN THABANENG
A6: ITEM | B6: DESCRIPTION | E6: UNIT | F6: QTY | G6: PRV | H6: CURR | I6: ESTIMATED | J6: PRV | K6: CURR | L6: TOT | M6: ESTIMATED | N6: %
A7: NO | G7: QTY | H7: QTY | I7: RATE | J7: AMOUNT | K7: AMOUNT | L7: AMOUNT | M7: AMOUNT | N7: CLAIMED
B10: PRIME COAT
A14: 41.01 | B14: Prime coat:
C16: Prime coat rate at 0.7l/m2
B17: (b) | C17: Quick drying RTH1/4P tar prime complying
C18: with SABS 748 | E18: lt | I18: 25 | M18: Rate Only
A20: 41.02 | B20: Aggregate for blinding | E20: m² | I20: 80 | M20: Rate Only
A23: 41.03 | B23: Extra over item 41.01 for applying the prime
B24: coat in areas accessible only to hand held
B25: equipment | E25: litre | I25: 40 | M25: Rate Only
A60: 4100 | B60: TOTAL CARRIED TO SUMMARY | M60: =SUM(M9:M58) -> 0

Sheet 4200 (hidden)
A2: RUSTENBURG LOCAL MUNICIPALITY
A3: CONTRACT NO: RLM/OMM/0080/2020/21
A4: CONSTRUCTION OF ROADS AND STORMWATER IN THABANENG
A6: ITEM | B6: DESCRIPTION | E6: UNIT | F6: QTY | G6: PRV | H6: CURR | I6: ESTIMATED | J6: PRV | K6: CURR | L6: TOT | M6: ESTIMATED | N6: %
A7: NO | G7: QTY | H7: QTY | I7: RATE | J7: AMOUNT | K7: AMOUNT | L7: AMOUNT | M7: AMOUNT | N7: CLAIMED
B10: ASPHALT BASE AND SURFACING
A14: 42.02 | B14: Asphalt surfacing (60/70 pen bitumen)
B16: (a) | C16: Contunously graded
C18: (2) Medium graded
C20: (iii) | D20: 30 mm thick | E20: m² | I20: 210 | M20: Rate Only
A22: 42.04 | B22: Tack coat of 30% stable-grade emulsion | E22: l | I22: 25 | M22: Rate Only
A24: 42.08 | B24: 100mm cores in asphalt | E24: No | I24: 500 | M24: Rate Only
A26: 42.13 | B26: Placing and compacting Asphalt in restricted
B27: areas
B29: (a) Extra over item 42.02 | E29: m² | I29: 200 | M29: Rate Only
A32: 42.14 | B32: Extra over item 42.04 for applying tack coat in | E32: l | I32: 30 | M32: Rate Only
B33: restricted areas
A63: 4200 | B63: TOTAL CARRIED TO SUMMARY | M63: 0
